[Event "37th ECCC 2022"]
[Site "Mayrhofen"]
[Date "2022.10.05"]
[Round "3.3"]
[White "Iskandarov, Misratdin"]
[Black "Deac, Bogdan-Daniel"]
[Result "0-1"]
[ECO "C54"]
[WhiteElo "2601"]
[BlackElo "2707"]
[Annotator "TA"]
[PlyCount "106"]
[EventDate "2022.10.03"]
[EventType "team-tourn"]
[EventCountry "AUT"]
[SourceTitle "playchess.com"]
[Source "ChessBase"]
[SourceQuality "1"]
[TimeControl "40/5400+30:1800+30"]

{[%evp 10,106,25,29,18,3,39,8,7,12,14,14,20,14,15,22,15,4,13,25,18,0,23,23,22,3,3,8,7,0,0,0,0,0,6,1,6,9,9,12,41,0,0,0,0,0,0,-9,0,-16,-12,-1,-11,-5,0,0,0,-35,-35,-35,-35,-35,-35,-43,-22,-34,-41,-176,0,-4,0,0,0,0,0,0,0,0,0,0,0,0,0,0,0,0,0,0,0,0,0,-25,-25,-25,-16,-132,-118,-834,-702]} 1. e4 {[%emt 0:00:06]} e5 {[%emt 0:00:11]} 2. Nf3 {[%emt 0:00:06]} Nc6 {[%emt 0:00:08]} 3. Bc4 {[%emt 0:00:56]} Bc5 {[%emt 0:00:24]} 4. c3 {[%emt 0:01:21]} Nf6 {[%emt 0:00:11]} 5. d3 {[%emt 0:00:06]} d6 {[%emt 0:00:51]} 6. O-O {[%emt 0:01:08]} a5 {[%emt 0:00:58] C54: Giuoco Piano: 4 c3 Nf6, main lines with 5 d4 and 5 d3.} 7. Re1 {[%emt 0:05:23]} Ba7 {[%emt 0:03:39]} 8. Na3 {[%emt 0:06:26]} h6 {[%emt 0:04:05] The position is equal.} 9. Nc2 {[%emt 0:00:59]} O-O {[%emt 0:09:29]} 10. Be3 {[%emt 0:05:19] [#]} Ne7 $146 {[%emt 0:05:21]} ({Predecessor:} 10... Bxe3 11. Nxe3 Re8 12. a4 Be6 13. Bxe6 Rxe6 14. Qb3 b6 15. Rad1 Ne7 16. h3 Qd7 {0-1 (49) Nepomniachtchi,I (2782)-Carlsen,M (2855) Dubai 2021}) 11. Bxa7 {[%emt 0:08:33]} Rxa7 {[%emt 0:00:03]} 12. d4 {[%emt 0:00:17]} Ng6 {[%emt 0:00:09]} 13. dxe5 {[%emt 0:02:06]} dxe5 {[%emt 0:03:38]} 14. Qxd8 {[%emt 0:00:06]} Rxd8 {[%emt 0:00:04]} 15. Rad1 {[%emt 0:00:08]} Re8 {[%emt 0:13:24]} 16. Nd2 {[%emt 0:08:13]} c6 {[%emt 0:11:44]} 17. f3 {[%emt 0:09:48]} Nd7 {[%emt 0:08:22]} 18. Ne3 {[%emt 0:05:53]} b5 {[%emt 0:05:04]} 19. Bf1 {[%emt 0:01:15][%cal Oa2a4]} Nc5 {[%emt 0:00:20]} 20. Nb3 {[%emt 0:02:07]} Nxb3 {[%emt 0:00:34]} 21. axb3 {[%emt 0:00:07]} Be6 {[%emt 0:00:32]} 22. Rd6 {[%emt 0:03:47]} Rc8 {[%emt 0:05:33]} 23. c4 {[%emt 0:04:19]} Nf8 {[%emt 0:01:11]} 24. cxb5 {[%emt 0:04:28]} cxb5 {[%emt 0:00:04]} 25. Nd5 {[%emt 0:00:05]} Rc2 {[%emt 0:02:57]} 26. Re2 {[%emt 0:05:51]} Rc1 {[%emt 0:01:51]} 27. Rd2 {[%emt 0:00:49]} Nd7 {[%emt 0:01:28]} 28. Ne7+ {[%emt 0:03:56]} Kf8 {[%emt 0:07:47]} 29. Nd5 {[%emt 0:00:33]} g6 {[%emt 0:00:45]} 30. b4 {[%emt 0:08:40] Prevents Nc5.} axb4 {[%emt 0:05:26] [#] ...Nc5 is the strong threat.} 31. Kf2 $1 {[%emt 0:00:06]} b3 {[%emt 0:04:53]} 32. Bxb5 {[%emt 0:00:35]} Nc5 {[%emt 0:00:16]} 33. Nb4 {[%emt 0:08:41]} Rb7 {[%emt 0:01:22]} 34. Nd3 {[%emt 0:01:07]} Nxd3+ {[%emt 0:01:55]} 35. Bxd3 {[%emt 0:00:05]} Rbc7 {[%emt 0:00:36]} 36. Ke3 {[%emt 0:03:13]} h5 {[%emt 0:00:45]} 37. Be2 {[%emt 0:01:17]} Rh1 {[%emt 0:01:54]} 38. h3 {[%emt 0:00:06]} (38. Bd1 $1 $15) 38... Rb1 $2 {[%emt 0:01:00]} (38... Rc2 $19 {aiming for ...Re1.} 39. h4 Re1) 39. Bd1 $11 {[%emt 0:01:10]} Rb7 {[%emt 0:00:26]} 40. h4 {[%emt 0:00:22]} Ke7 {[%emt 0:00:34]} 41. R6d3 {[%emt 0:30:29]} Kf6 {[%emt 0:30:32]} 42. g3 {[%emt 0:00:00]} Rc1 {[%emt 0:00:00]} 43. Kf2 {[%emt 0:00:00]} Rb4 {[%emt 0:00:00]} 44. Ke3 {[%emt 0:00:00]} Ke7 {[%emt 0:00:00]} 45. Be2 {[%emt 0:00:00]} Rc6 {[%emt 0:00:00]} 46. Rd1 {[%emt 0:00:00]} f5 {[%emt 0:00:00]} 47. exf5 {[%emt 0:00:00]} gxf5 {[%emt 0:00:00]} 48. R3d2 {[%emt 0:00:38]} f4+ {[%emt 0:00:00]} 49. gxf4 {[%emt 0:00:17]} Rxf4 {[%emt 0:00:00]} 50. Rh1 {[%emt 0:03:03]} Rc2 {[%emt 0:00:00][%cal Of4d4]} 51. Bd1 $1 {[%emt 0:00:23]} Rc1 {[%emt 0:01:52] White must now prevent ...Rb1.} 52. Rhh2 {[%emt 0:01:06] [#]} (52. Rg1 $1 $11 {remains equal.}) 52... Rd4 $1 $17 {[%emt 0:01:24] Black has more active pieces.} 53. f4 $2 {[%emt 0:00:59][%mdl 8192]} Rxd1 {[%emt 0:00:06] Weighted Error Value: White=0.25 (precise) /Black=0.09 (flawless)} 0-1

[Event "37th ECCC 2022"]
[Site "Mayrhofen"]
[Date "2022.10.05"]
[Round "3.4"]
[White "Gukesh D"]
[Black "Ahmadzada, Ahmad"]
[Result "1-0"]
[ECO "E11"]
[WhiteElo "2732"]
[BlackElo "2488"]
[Annotator "TA"]
[PlyCount "83"]
[EventDate "2022.10.03"]
[EventType "team-tourn"]
[EventCountry "AUT"]
[SourceTitle "playchess.com"]
[Source "ChessBase"]
[SourceQuality "1"]
[TimeControl "40/5400+30:1800+30"]

{[%evp 14,83,22,33,32,4,25,4,27,2,18,-1,33,19,19,17,43,38,97,96,124,123,115,63,71,66,62,68,58,60,66,66,79,77,80,62,80,86,128,81,76,70,47,52,45,56,82,36,36,38,76,76,54,76,76,0,4,-58,-43,-43,65,74,97,112,5065,2616,2929,2995,2165,2212,1687,1635]} 1. d4 {[%emt 0:01:27]} Nf6 {[%emt 0:00:12]} 2. c4 {[%emt 0:01:01]} e6 {[%emt 0:00:17]} 3. Nf3 {[%emt 0:01:42]} Bb4+ {[%emt 0:00:15]} 4. Nbd2 {[%emt 0:01:27]} b6 {[%emt 0:01:52]} 5. a3 {[%emt 0:05:34]} Bxd2+ {[%emt 0:00:48]} 6. Qxd2 {[%emt 0:00:08]} Bb7 {[%emt 0:00:22]} 7. e3 {[%emt 0:01:06]} O-O {[%emt 0:00:27]} 8. Be2 {[%emt 0:00:04]} d5 {[%emt 0:00:56] E14: Queen's Indian: Classical Variation (4 e3).} 9. b3 {[%emt 0:01:47]} Nbd7 {[%emt 0:03:06]} 10. O-O {[%emt 0:01:37]} c5 {[%emt 0:04:17] The position is equal.} 11. a4 {[%emt 0:03:12]} Rc8 {[%emt 0:05:53]} 12. Ba3 {[%emt 0:03:00]} Re8 {[%emt 0:05:20]} 13. cxd5 {[%emt 0:07:38]} Bxd5 {[%emt 0:02:13]} 14. Qb2 {[%emt 0:03:31] [#]} Ne4 $146 {[%emt 0:08:43]} ({Predecessor:} 14... cxd4 15. Nxd4 Nc5 16. Bb5 Re7 17. Rad1 Qc7 18. f3 a6 19. Be2 Rd7 20. Rc1 Qd8 {½-½ (60) Toolin,C (2241)-Serna,J (2009) Dallas 2016}) 15. Rac1 {[%emt 0:09:20]} Qf6 {[%emt 0:08:39] [#]} (15... Qe7 $14) 16. Bb5 $1 $16 {[%emt 0:10:50]} Bc6 {[%emt 0:19:13] [#]} 17. Bxc6 $1 {[%emt 0:05:45]} Rxc6 {[%emt 0:00:07]} 18. Ne5 {[%emt 0:01:33]} (18. Qc2 $16 Qg6 19. dxc5) 18... Nxe5 $14 {[%emt 0:09:21]} 19. dxe5 {[%emt 0:00:05]} Qg5 {[%emt 0:00:04]} 20. Rc4 {[%emt 0:05:33]} f5 {[%emt 0:02:10]} 21. exf6 {[%emt 0:00:27]} Nxf6 {[%emt 0:01:35]} 22. b4 {[%emt 0:01:49]} Nd7 {[%emt 0:03:05]} 23. bxc5 {[%emt 0:03:59]} Nxc5 {[%emt 0:03:14]} 24. Qe2 {[%emt 0:00:54]} Rd6 {[%emt 0:06:23]} 25. h4 {[%emt 0:05:23]} Qf6 {[%emt 0:07:05]} 26. g3 {[%emt 0:06:09]} (26. Bxc5 $142 bxc5 27. Qh5 (27. Rxc5 Qxh4 28. Rc7 e5 $14)) 26... Rc8 $16 {[%emt 0:01:25]} 27. Bb2 {[%emt 0:01:57]} e5 {[%emt 0:01:17]} 28. Ba3 {[%emt 0:06:30]} Rdc6 {[%emt 0:00:30]} 29. Rd1 {[%emt 0:00:34]} Qe6 {[%emt 0:01:18]} 30. e4 {[%emt 0:05:09]} (30. Bxc5 $16 {[%cal Oe2g4]} bxc5 31. Qd3) 30... h6 $14 {[%emt 0:00:41]} 31. Rd5 {[%emt 0:01:56]} Nd7 {[%emt 0:01:56]} 32. Rxc6 {[%emt 0:00:07] White is more active.} Rxc6 {[%emt 0:00:35]} 33. Qb5 {[%emt 0:01:38]} Kh7 {[%emt 0:00:32][%cal Oa7a6]} 34. h5 {[%emt 0:02:01]} (34. Bb2 $16) 34... a6 {[%emt 0:00:48]} 35. Qd3 {[%emt 0:02:05]} ({Better is} 35. Qxa6 $11 Nf6 36. Qb5) 35... Nf6 $15 {[%emt 0:00:18][%csl LRd5,LRh5]} 36. Kg2 {[%emt 0:00:31]} Nxh5 {[%emt 0:00:56]} (36... Nxd5 $2 37. exd5+ e4 38. Qd4 $18 (38. dxe6 $2 exd3 39. e7 Re6 $19)) (36... Qe8 $15) 37. Bb2 $14 {[%emt 0:00:23]} Rc5 {[%emt 0:00:50]} 38. Bxe5 $1 {[%emt 0:00:36]} Rxd5 $4 {[%emt 0:01:01][%mdl 8192] Black cannot hold the game after this.} (38... Rc6 $16) 39. exd5+ $18 {[%emt 0:00:01][%mdl 64] Discovered Attack. White is clearly winning.} ({And not} 39. Qxd5 Qxd5 40. exd5 Kg6 $15) 39... Qg6 {[%emt 0:00:07]} 40. Qd4 {[%emt 0:00:38] Black must now prevent d6.} Qe8 {[%emt 0:02:03]} 41. d6 {[%emt 0:02:08] aiming for d7.} ({Less strong is} 41. g4 Nf6 42. Bxf6 gxf6 43. Qxf6 (43. Qxb6 Qe4+ 44. f3 Qe2+ 45. Kg3 Qe5+ 46. Kg2 Qe2+ 47. Qf2 Qd1 $16) 43... Qxa4 $18) 41... Qd7 {[%emt 0:02:21]} 42. Qxb6 {[%emt 0:00:43] Weighted Error Value: White=0.13 (very precise) /Black=0.19 (very precise)} 1-0

[Event "37th ECCC 2022"]
[Site "Mayrhofen"]
[Date "2022.10.05"]
[Round "3.5"]
[White "Sadikhov, Ulvi"]
[Black "Sargissian, Gabriel"]
[Result "1/2-1/2"]
[ECO "A13"]
[WhiteElo "2473"]
[BlackElo "2711"]
[Annotator "TA"]
[PlyCount "124"]
[EventDate "2022.10.03"]
[EventType "team-tourn"]
[EventCountry "AUT"]
[SourceTitle "playchess.com"]
[Source "ChessBase"]
[SourceQuality "1"]
[TimeControl "40/5400+30:1800+30"]

{[%evp 13,124,0,8,0,0,0,8,-22,-2,0,-10,-19,0,-10,0,0,0,0,13,8,36,-2,38,0,0,-9,33,28,28,40,29,22,16,8,15,0,0,0,0,0,0,0,-8,-7,-16,-16,-10,-43,-41,-59,-62,-66,-18,-46,-23,-16,0,0,0,0,0,-8,-15,-42,-42,-42,-42,-43,-42,-42,-31,-39,-30,-95,-95,-95,-95,-139,-117,-117,-116,-123,-123,-156,-156,-156,-156,-156,-156,-156,-156,-156,-156,-156,-156,-156,-156,-156,-156,-156,-156,-156,-156,-156,-156,-156,-156,-156,-156,-156,-156,-156,-156]} 1. c4 {[%emt 0:00:05]} e6 {[%emt 0:00:54]} 2. g3 {[%emt 0:00:28]} d5 {[%emt 0:01:07]} 3. Bg2 {[%emt 0:00:32]} Nf6 {[%emt 0:00:51]} 4. Nf3 {[%emt 0:00:17]} Be7 {[%emt 0:01:20]} 5. b3 {[%emt 0:00:24]} d4 {[%emt 0:02:34]} 6. O-O {[%emt 0:01:02]} c5 {[%emt 0:01:46]} 7. e3 {[%emt 0:02:02]} Nc6 {[%emt 0:00:56]} 8. exd4 {[%emt 0:00:07] A14: English Opening: 1...e6 with b3 by White.} cxd4 {[%emt 0:00:33]} 9. d3 {[%emt 0:00:09]} O-O {[%emt 0:02:40]} 10. Bg5 {[%emt 0:01:26] The position is equal.} h6 {[%emt 0:07:17]} 11. Bxf6 {[%emt 0:00:06]} Bxf6 {[%emt 0:00:07] [#]} 12. Nbd2 $146 {[%emt 0:02:04]} ({Predecessor:} 12. a3 a5 13. Nbd2 Be7 14. Qc2 Bd7 15. Qb2 e5 16. Rfe1 Qc7 17. Rac1 b6 18. Re2 {½-½ (40) Keinanen,T (2447)-Urkedal,F (2545) Stockholm 2020}) 12... e5 {[%emt 0:03:44]} 13. Re1 {[%emt 0:07:12][%cal Ob3b4]} Qc7 {[%emt 0:05:54]} 14. a3 {[%emt 0:09:43]} a5 {[%emt 0:05:20]} 15. c5 {[%emt 0:13:18]} Be6 {[%emt 0:02:03]} 16. Rc1 {[%emt 0:05:03]} Na7 {[%emt 0:14:20]} 17. Nc4 {[%emt 0:28:02]} Bxc4 {[%emt 0:09:49]} (17... Nb5 {seems wilder.} 18. Nfxe5 Nc3 19. Qh5 Qxc5 20. Bxb7 Rab8) 18. bxc4 {[%emt 0:06:56]} Qxc5 {[%emt 0:00:35]} 19. Qa4 {[%emt 0:00:23]} Nc8 {[%emt 0:11:55]} 20. Rb1 {[%emt 0:01:10][%cal Of3e5] Black must now prevent Nxe5!} Nd6 {[%emt 0:02:57]} 21. Nd2 {[%emt 0:00:12]} Ra7 {[%emt 0:02:59]} 22. Ne4 {[%emt 0:01:54]} Nxe4 {[%emt 0:00:20]} 23. Bxe4 {[%emt 0:00:06]} Be7 {[%emt 0:00:57]} 24. Rxb7 {[%emt 0:03:48]} Rxb7 {[%emt 0:01:14]} 25. Bxb7 {[%emt 0:00:04]} Rb8 {[%emt 0:02:27]} 26. Qd7 {[%emt 0:04:03]} Qd6 {[%emt 0:01:27]} 27. Qxd6 {[%emt 0:01:26]} Bxd6 $11 {[%emt 0:00:09][%mdl 4096] Endgame KRB-KRB} 28. Bd5 {[%emt 0:00:53]} Kf8 {[%emt 0:03:20]} 29. a4 {[%emt 0:02:08]} f6 {[%emt 0:03:45]} 30. Rc1 {[%emt 0:01:35]} Bc5 {[%emt 0:01:17]} 31. f4 {[%emt 0:00:51]} exf4 {[%emt 0:01:57]} 32. gxf4 {[%emt 0:00:06]} Rb2 {[%emt 0:01:13]} (32... f5 $15) 33. f5 {[%emt 0:01:04]} Rd2 {[%emt 0:02:23]} 34. Be4 {[%emt 0:01:37]} Ke7 {[%emt 0:00:58]} 35. Rb1 {[%emt 0:00:37]} Bb4 {[%emt 0:00:18]} 36. c5 {[%emt 0:01:39][%cal Bc4c5,Bc5c6][%mdl 32]} Ra2 {[%emt 0:04:02]} 37. Rc1 {[%emt 0:04:48]} Kd7 {[%emt 0:01:34]} (37... Rxa4 $2 38. c6 Bd6 39. c7 Bxc7 40. Rxc7+ Kf8 41. Bd5 $18) 38. Rc4 {[%emt 0:00:32]} Kc7 {[%emt 0:00:31]} 39. c6 {[%emt 0:00:45]} Rxa4 {[%emt 0:00:27]} 40. Kg2 {[%emt 0:00:13]} Ra2+ {[%emt 0:00:50]} 41. Kf3 {[%emt 0:31:13]} Bc3 {[%emt 0:09:53]} 42. Rc5 $1 {[%emt 0:00:00]} Rxh2 {[%emt 0:01:37]} 43. Rd5 {[%emt 0:00:00]} (43. Rb5 $11 Rb2 44. Rd5) 43... Kxc6 $17 {[%emt 0:00:17] White is on the road to losing.} 44. Rxa5+ {[%emt 0:00:00]} Kb6 {[%emt 0:00:19]} 45. Ra8 {[%emt 0:00:00]} Rh5 {[%emt 0:01:13]} 46. Ra2 {[%emt 0:00:00]} Rg5 {[%emt 0:07:11]} 47. Rg2 {[%emt 0:00:00]} h5 {[%emt 0:00:14][%cal Bh6h5,Bh5h4][%mdl 32]} 48. Kf2 {[%emt 0:00:00]} Bd2 {[%emt 0:05:44] Black is clearly better.} 49. Rxg5 {[%emt 0:01:05]} fxg5 {[%emt 0:00:07][%cal Bf6g5,Bg5g4,Bg4g3][%mdl 32] KB-KB} ({Weaker is} 49... Bxg5 50. Kg3 $17) 50. Bd5 {[%emt 0:00:17]} g4 {[%emt 0:00:35]} 51. Bf7 {[%emt 0:02:20]} h4 {[%emt 0:00:34]} 52. Bh5 {[%emt 0:00:15]} Be3+ {[%emt 0:03:03]} 53. Kf1 {[%emt 0:00:42]} g3 {[%emt 0:01:47] [#] ( -> ...h3)} 54. Bg4 {[%emt 0:00:06]} Kc5 {[%emt 0:00:11] ...Kd6 is the strong threat.} 55. Bh3 {[%emt 0:00:12]} Kd5 {[%emt 0:00:42] aiming for ...Ke5.} 56. Kg2 {[%emt 0:00:08]} Ke5 {[%emt 0:02:44] And now ...Kf4 would win.} 57. Kf3 {[%emt 0:00:03] [#]} Bg5 $1 {[%emt 0:03:09]} 58. Kg4 {[%emt 0:00:23]} Bd8 {[%emt 0:00:04]} 59. Bg2 {[%emt 0:00:19]} Be7 {[%emt 0:00:07]} 60. Bh3 {[%emt 0:00:07]} Kd5 {[%emt 0:00:22]} 61. Kf3 {[%emt 0:00:36]} Kd6 {[%emt 0:00:27]} 62. Bg2 {[%emt 0:00:29]} Ke5 {[%emt 0:00:05] Weighted Error Value: White=0.08 (flawless) /Black=0.05 (flawless)} 1/2-1/2

[Event "37th ECCC 2022"]
[Site "Mayrhofen"]
[Date "2022.10.05"]
[Round "3.6"]
[White "Lupulescu, Constantin"]
[Black "Babazada, Khazar"]
[Result "1-0"]
[ECO "D12"]
[WhiteElo "2603"]
[BlackElo "2463"]
[Annotator "TA"]
[PlyCount "87"]
[EventDate "2022.10.03"]
[EventType "team-tourn"]
[EventCountry "AUT"]
[SourceTitle "playchess.com"]
[Source "ChessBase"]
[SourceQuality "1"]
[TimeControl "40/5400+30:1800+30"]

{[%evp 12,87,24,31,29,14,22,25,34,18,20,10,29,47,48,34,33,2,11,0,0,0,37,28,35,29,37,55,54,76,71,5,12,0,12,0,0,0,0,0,0,0,93,91,87,113,132,0,0,0,141,128,145,138,130,125,170,178,234,243,245,175,286,225,394,130,398,237,771,771,29976,29977,29982,29983,29983,29984,29984,29985]} 1. d4 {[%emt 0:00:01]} d5 {[%emt 0:01:30]} 2. c4 {[%emt 0:00:05]} c6 {[%emt 0:00:57]} 3. Nf3 {[%emt 0:00:05]} Nf6 {[%emt 0:00:10]} 4. e3 {[%emt 0:00:04]} Bf5 {[%emt 0:00:12]} 5. Nc3 {[%emt 0:00:05]} e6 {[%emt 0:01:14]} 6. Nh4 {[%emt 0:00:12]} Be4 {[%emt 0:00:23]} 7. f3 {[%emt 0:00:05]} Bg6 {[%emt 0:00:06] D12: Slav Defence: 3 Nf3 Nf6 4 e3 Bf5.} 8. Bd2 {[%emt 0:00:12]} Be7 {[%emt 0:01:11]} 9. Nxg6 {[%emt 0:00:22]} hxg6 {[%emt 0:00:06] White has an edge.} 10. Qc2 {[%emt 0:00:04]} Qc7 {[%emt 0:10:52]} 11. O-O-O {[%emt 0:02:37] [#]} dxc4 $146 {[%emt 0:00:44]} ({Predecessor:} 11... Nbd7 12. g4 Rxh2 13. Bd3 g5 14. cxd5 Nxd5 15. Nxd5 exd5 16. e4 dxe4 17. fxe4 O-O-O {½-½ (49) Lagarde,M (2651)-Flom,G (2499) Sitges 2020}) 12. Bxc4 {[%emt 0:00:57]} Nbd7 {[%emt 0:02:54]} 13. h3 {[%emt 0:17:43]} b5 {[%emt 0:10:01]} 14. Bd3 {[%emt 0:06:17][%cal Oc3b5]} a6 {[%emt 0:01:44]} 15. Ne4 {[%emt 0:00:27]} Rc8 {[%emt 0:09:40]} 16. Kb1 {[%emt 0:02:25]} c5 {[%emt 0:06:38]} 17. Nxc5 $1 {[%emt 0:03:13]} Nxc5 {[%emt 0:06:47]} 18. dxc5 {[%emt 0:01:39]} Qg3 {[%emt 0:06:49]} 19. Be1 {[%emt 0:07:39]} Qe5 {[%emt 0:01:02]} 20. c6 {[%emt 0:08:31]} Qxe3 {[%emt 0:09:57]} 21. Bf2 {[%emt 0:05:39]} ({White should play} 21. c7 $16 {Threatens to win with Qc6+.} Qb6 22. Bg3) 21... Qf4 $11 {[%emt 0:00:31]} 22. Rc1 {[%emt 0:02:34]} O-O {[%emt 0:01:54]} 23. Rhd1 {[%emt 0:06:48]} Rfd8 {[%emt 0:01:33]} 24. Be4 {[%emt 0:05:10]} Rxd1 {[%emt 0:11:50]} 25. Rxd1 {[%emt 0:00:13]} Nxe4 {[%emt 0:07:37]} 26. fxe4 {[%emt 0:00:13]} Bf6 {[%emt 0:00:16]} (26... b4 $11 {keeps the balance.}) 27. Bb6 $1 $16 {[%emt 0:02:30] aiming for a3.} Qb8 {[%emt 0:00:21]} 28. Qc5 {[%emt 0:11:59] White is more active.} Qf4 {[%emt 0:03:16]} 29. Qc2 {[%emt 0:01:14]} Qb8 $1 {[%emt 0:00:11]} 30. Qc5 {[%emt 0:00:37]} Qf4 {[%emt 0:00:05] [#] Inhibits e5.} 31. c7 $1 $36 {[%emt 0:00:18][%mdl 2048] White is on the roll.} Kh7 {[%emt 0:01:36]} 32. a3 {[%emt 0:02:49][%cal Ba2a3,Ba3a4][%mdl 32] Black must now prevent Qc2.} Qxe4+ {[%emt 0:01:21]} 33. Qc2 {[%emt 0:00:35]} Qe5 {[%emt 0:01:19]} 34. Rd7 {[%emt 0:04:05][%mdl 1024] White has strong compensation.} b4 {[%emt 0:00:48] [#]} (34... Qg3 {might work better.} 35. Ba5 (35. Rxf7 b4 $11) 35... Qe3) 35. a4 $1 $18 {[%emt 0:01:02]} (35. Rxf7 $2 bxa3 36. Rxf6 Qxf6 $19) (35. axb4 Qe1+ 36. Ka2 Qxb4 $11) 35... Qg3 {[%emt 0:01:12]} 36. Ka2 {[%emt 0:01:05] Against b3+} (36. Rxf7 b3 37. Qd1 Qxg2 38. Qxb3 Qh1+ 39. Ka2 Qc6 $15) 36... Qg5 {[%emt 0:00:54]} (36... b3+ $142 37. Qxb3 Qxg2) 37. g4 {[%emt 0:02:37]} (37. Rxf7 Qd5+ 38. Qb3 Qc6 39. Qxb4 Kg8 40. Rxf6 gxf6 $11) 37... Qe5 $2 {[%emt 0:00:37]} (37... Qh6 {was worth a try.} 38. Rxf7 Qxh3) 38. Qb3 $2 {[%emt 0:01:51]} (38. Bd4 $18 {and the rest is easy.} Qf4 39. Bxf6 Qxf6 40. Qc5) 38... Qg5 {[%emt 0:00:37][%mdl 8192] This move loses the game for Black.} (38... Qf4 $16 39. Qc2 (39. Rxf7 Qd6 $11) 39... Be5) 39. Qxb4 {[%emt 0:02:57]} (39. Rxf7 $142 Qc1 40. Rd7 (40. Qxb4 Qc6 $14)) 39... Qh4 $2 {[%emt 0:00:30]} (39... Qc1 40. Rd8 (40. Rxf7 Qc6 $14) 40... Rxc7 41. Bxc7 Qxc7) 40. Rxf7 {[%emt 0:00:57] Strongly threatening Bd4.} Qxh3 {[%emt 0:00:26]} 41. Rxf6 {[%emt 0:10:20] White mates.} gxf6 {[%emt 0:00:51]} 42. Qe7+ {[%emt 0:00:18]} Kh6 {[%emt 0:00:05]} 43. Qxe6 {[%emt 0:00:22]} Qf3 {[%emt 0:01:33]} 44. Be3+ {[%emt 0:00:48][%mdl 64] Discovered Attack.  Weighted Error Value: White=0.31/Black=0.45} 1-0